Cogmind - Beta 16 @@@ ROGUE MODE // 2025.12.26 @ 14:25:06 Player: Moose Result: Destroyed by Y-45 Defender with Heavy Assault Rifle Performance ------------- Evolutions (1) 500 Regions Visited (2) 400 Robots Destroyed (23) 115 Value Destroyed (534) 534 Prototype IDs (0) 0 Alien Tech Used (0) 0 Bonus (0) 0 TOTAL SCORE: 1549 Bonus ------- None Cogmind --------- Core Integrity 0/400 Matter 269/300 Energy 101/125 System Corruption 0% Temperature Cool (25) Movement Core (200) Ox3 Location -9/Materials Parts ------- > --- POWER (1) -------- Light Ion Engine > --- PROPULSION (4) --- (None) > --- UTILITY (2) ------ Small Storage Unit Improved Targeting Computer > --- WEAPON (2) ------- Beam Rifle Light Assault Rifle > --- INVENTORY (8) ---- Light Ion Engine Light Ion Engine Cooling System High-capacity Matter Pod (200) Weapon Shielding Peak State ------------ > --- POWER ------------ Light Ion Engine > --- PROPULSION ------- Aluminum Leg Aluminum Leg > --- UTILITY ---------- Small Storage Unit Improved Targeting Computer > --- WEAPON ----------- Heavy Assault Rifle Heavy Assault Rifle > --- INVENTORY -------- Cooling System High-capacity Matter Pod Weapon Shielding Beam Rifle Light Assault Rifle [Rating: 10] Favorites ----------- Power Light Ion Engine Engine Light Ion Engine Propulsion Aluminum Leg Leg Aluminum Leg Wheel Wheel Utility Small Storage Unit Storage Small Storage Unit Processor Improved Targeting Computer Protection Light Armor Plating Weapon Assault Rifle Energy Gun EM Pulse Gun Ballistic Gun Assault Rifle Ballistic Cannon Light Cannon Build | -11 -10 -9 ------- Run | Yrd Mat Mat Slots Evolved 2 | . . 2 Power . | . . . Propulsion 2 | . . 2 Utility . | . . . Weapon . | . . . Parts Attached 24 | 5 7 12 Power 5 | 1 1 3 Engine 5 | 1 1 3 Core . | . . . Reactor . | . . . Propulsion 7 | 2 2 3 Treads . | . . . Leg 5 | . 2 3 Wheel 2 | 2 . . Hover . | . . . Flight . | . . . Utility 3 | 1 1 1 Device . | . . . Storage 1 | 1 . . Processor 1 | . . 1 Hackware . | . . . Protection 1 | . 1 . Artifact . | . . . Weapon 9 | 1 3 5 Energy Gun 3 | . 1 2 Energy Cannon . | . . . Ballistic Gun 5 | 1 1 3 Ballistic Cannon 1 | . 1 . Launcher . | . . . Special Weapon . | . . . Impact Weapon . | . . . Slashing Weapon . | . . . Piercing Weapon . | . . . Special Melee Weapon . | . . . Unidentified Prototypes . | . . . Parts Lost 16 | . 2 14 Power 3 | . . 3 Propulsion 6 | . 1 5 Utility 1 | . 1 . Weapon 6 | . . 6 Highest Loss Streak 9 | . 1 9 To Critical Strikes . | . . . Average Backups 4 | 3 5 4 Power 1 | . 1 . Propulsion 1 | 1 1 . Utility 1 | . 1 2 Weapon . | 1 . 1 Tool/Special . | . . . Unused Backups 6 | 1 . 5 Power 2 | . . 2 Propulsion 1 | 1 . . Utility 3 | . . 3 Weapon . | . . . Tool/Special . | . . . Average Slot Usage (%) 78 | . 88 64 Engine 11 | . 14 9 Leg 18 | . 16 21 Wheel 7 | . 12 . Storage 12 | . 14 11 Processor 1 | . . 4 Protection 2 | . 4 . Energy Gun 5 | . 8 2 Ballistic Gun 15 | . 16 12 Ballistic Cannon 2 | . 1 3 Peak Build Rating 10 | 5 7 10 Average Rating 6 | 3 6 7 On Entrance 3 | . 5 6 Avg Prop Armor Cover (%) . | . . . Naked Turns . | . . . Heaviest Build 17 | 9 17 15 Greatest Support 30 | 20 20 30 Greatest Overweight (x) 3 | . . 3 Average Overweight (x) . | . . . Largest Inventory Capacity 8 | 8 8 8 Average Capacity 7 | 7 8 8 Most Carried 8 | 5 8 7 Average Carried 4 | 3 5 4 Final Capacity 8 | 8 8 8 Final Carried 5 | 5 5 5 Class Distribution -------------------- 75% | Mutant 24% | Scavenger-Mutant Dominant Class ---------------- Mutant | -10/Materials Scavenger-Mutant | -9/Materials Resources | -11 -10 -9 ----------- Run | Yrd Mat Mat Matter Collected 846 | 190 312 344 Remotely . | . . . Salvage Created 607 | . 268 339 Parts 54 | . 21 33 Haulers Intercepted . | . . . Recyclers Shooed 5 | . 4 1 Parts Field Recycled . | . . . Retrieved Matter . | . . . Parts Self-Destructed . | . . . Prevented . | . . . Parts Restored . | . . . Kills | -11 -10 -9 ------- Run | Yrd Mat Mat Combat Hostiles Destroyed 22 | . 8 14 Guns 19 | . 8 11 Cannons 3 | . . 3 Classes Destroyed 4 | . 3 1 Watcher 1 | . 1 . Swarmer 12 | . 3 9 Grunt 8 | . 5 3 Sentry 2 | . . 2 Best Kill Streak 3 | . 3 3 Combat Bots Only 3 | . 3 3 Max Kills in Single Turn 1 | . 1 1 Gunslinging . | . . . Exploded . | . . . Melee . | . . . Uniques/NPCs Destroyed . | . . . Combat | -11 -10 -9 -------- Run | Yrd Mat Mat Hostile Shots Fired 243 | . 70 173 Missed 59 | . 18 41 Hits 184 | . 52 132 Projectile 184 | . 52 132 Critical Strikes 4 | . 1 3 Damage Taken 2067 | . 572 1495 Core 511 | . 102 409 Absorbed by Shields . | . . . Core Remaining (%) 79 | 100 59 . Volleys Fired 90 | . 36 54 Largest 2 | . 2 2 Hottest 79 | . 60 79 Shots Fired 148 | . 66 82 Gun 129 | . 66 63 Cannon 19 | . . 19 Launcher . | . . . Special . | . . . Kinetic 109 | . 46 63 Thermal 17 | . . 17 Explosive . | . . . Electromagnetic 22 | . 20 2 Robot Hit Streak 17 | . 6 17 Robot Miss Streak 6 | . 3 6 Penetration Max . | . . . Secondary Targets 3 | . 1 2 Max Gunslinging Chain 1 | . 1 1 Shots Hit Robots 83 | . 40 43 Core Hits 35 | . 16 19 Critical Kills . | . . . Critical Parts Destroyed . | . . . Critical Strikes 1 | . . 1 Blast 1 | . . 1 Melee Attacks . | . . . Impact . | . . . Slashing . | . . . Piercing . | . . . Sneak Attacks . | . . . Combat Hostiles . | . . . Follow-up Attacks . | . . . Damage Inflicted 1157 | . 494 663 Guns 970 | . 457 513 Cannons 146 | . . 146 Explosions . | . . . Melee . | . . . Ramming 41 | . 37 4 Kinetic 783 | . 301 482 Thermal 177 | . . 177 Explosive . | . . . Electromagnetic 156 | . 156 . Impact . | . . . Slashing . | . . . Piercing . | . . . Highest Corruption . | . . . Average Corruption . | . . . Corruption Purged . | . . . Corruption Blocked . | . . . Overload Shots . | . . . Overflow Damage . | . . . Projectiles . | . . . Explosions . | . . . Melee . | . . . Knockbacks 3 | . . 3 Impact . | . . . Kinetic 2 | . . 2 Secondary 1 | . . 1 Self-Inflicted Damage 13 | . 13 . Shots . | . . . Rammed 4 | . 4 . Targets Rammed 7 | . 5 2 Kicked 3 | . 1 2 Crushed . | . . . Highest Temperature 120 | . 120 111 Average Temperature 36 | . 36 38 Received Heat Transfer 807 | . 279 528 Siege Activations . | . . . Martial Activations . | . . . Shielding Activations . | . . . Robots Disrupted . | . . . Combat Hostiles . | . . . Robots Corrupted . | . . . Combat Hostiles . | . . . Parts Fried . | . . . Impact Corruptions . | . . . Robots Melted . | . . . Combat Hostiles . | . . . Parts Melted 1 | . . 1 Heat Transferred 434 | . . 434 Parts Sabotaged . | . . . Parts Stolen . | . . . Parts Stripped . | . . . Power Chain Reactions . | . . . Alert | -11 -10 -9 ------- Run | Yrd Mat Mat Maximum Alert Level . | . . . Low Security (%) 100 | 100 100 100 Level 1 . | . . . Level 2 . | . . . Level 3 . | . . . Level 4 . | . . . Level 5 . | . . . High Security . | . . . Max Security . | . . . Peak Influence 117 | . 117 100 Initial 14 | . . 14 Average 40 | . 44 40 Influence Increases 602 | . 232 370 Destroy 0b10 Robot/C 440 | . 160 280 Destroy 0b10 Robot/NC 5 | . 5 . Destroy Leader 92 | . 32 60 Successful Hack 5 | . 5 . Disable Machine 15 | . 15 . Lose Combat Pursuer 45 | . 15 30 Influence Decreases 512 | . 197 315 Entered New Map 21 | . . 21 Time Decay 337 | . 177 160 Lost Part 154 | . 20 134 Squads Dispatched 3 | . 3 . Investigation 1 | . 1 . Extermination . | . . . Reinforcement 2 | . 2 . Assault . | . . . Garrison . | . . . Intercept . | . . . Searches Triggered . | . . . Construction Impeded . | . . . Haulers Reinforced . | . . . Active Scanning Responses . | . . . Cargo Convoy Interrupts . | . . . Stealth | -11 -10 -9 --------- Run | Yrd Mat Mat Distress Signals 3 | . 2 1 Communications Jammed . | . . . Distress Signals . | . . . Times Spotted 35 | . 15 20 Peak Tracking Total 5 | . 4 5 Tactical Retreats 2 | . 1 1 Traps | -11 -10 -9 ------- Run | Yrd Mat Mat Traps Triggered . | . . . Indirectly . | . . . Trap Hack Attempts . | . . . Triggered . | . . . Disarmed . | . . . Reprogrammed . | . . . Reused . | . . . Traps Extracted . | . . . Installed . | . . . Triggered . | . . . Machines | -11 -10 -9 ---------- Run | Yrd Mat Mat Machines Disabled 1 | . 1 . Max in Single Turn 1 | . 1 . Machines Repaired . | . . . Machines Dismantled . | . . . Machines Sabotaged . | . . . Overloaded Fab Kills . | . . . Hacking | -11 -10 -9 --------- Run | Yrd Mat Mat Machines Accessed 2 | . 2 . Terminals 2 | . 2 . Fabricators . | . . . Repair Stations . | . . . Recycling Units . | . . . Scanalyzers . | . . . Garrison Access . | . . . Total Hacks 3 | . 3 . Successful 1 | . 1 . Failed 2 | . 2 . Catastrophic 1 | . 1 . Database Lockouts . | . . . Manual . | . . . Terminals 3 | . 3 . Fabricators . | . . . Repair Stations . | . . . Recycling Units . | . . . Scanalyzers . | . . . Garrison Access . | . . . Terminal Hacks 1 | . 1 . Zone Layout 1 | . 1 . Fabricator Hacks . | . . . Repair Station Hacks . | . . . Recycling Unit Hacks . | . . . Scanalyzer . | . . . Garrison Access Hacks . | . . . Unauthorized Hacks . | . . . Terminals . | . . . Fabricators . | . . . Repair Stations . | . . . Recycling Units . | . . . Scanalyzers . | . . . Garrison Access . | . . . Data Cores Recovered . | . . . Used . | . . . Hacking Detections 2 | . 2 . Full Trace Events 1 | . 1 . Feedback Events . | . . . Feedback Blocked . | . . . Robot Schematics Acquired . | . . . Robots Built . | . . . Authchips . | . . . Time . | . . . Total Robot Build Rating . | . . . Part Schematics Acquired . | . . . Parts Built . | . . . Authchips . | . . . Time . | . . . Total Part Build Rating . | . . . Part Studies Acquired . | . . . Parts Repaired . | . . . Time . | . . . Parts Recycled . | . . . Recycled Matter . | . . . Retrieved Matter . | . . . Retrieved Components . | . . . Parts Scanalyzed . | . . . Part Schematics Acquired . | . . . Parts Damaged . | . . . Bothacking | -11 -10 -9 ------------ Run | Yrd Mat Mat Used RIF Installer . | . . . Robots Hacked . | . . . Non-combat . | . . . Combat . | . . . Robot Hacks Applied . | . . . Relay Couplers Released . | . . . Fabnet Peak Effective % . | . . . Robots Rewired . | . . . Allies Hacked . | . . . Hacks Repelled . | . . . Allies | -11 -10 -9 -------- Run | Yrd Mat Mat Total Allies . | . . . Largest Group . | . . . Highest-Rated Group . | . . . Highest-Rated Ally . | . . . Total Orders . | . . . Ally Attacks . | . . . Total Damage . | . . . Kills . | . . . Allies Corrupted . | . . . Allies Melted . | . . . Intel | -11 -10 -9 ------- Run | Yrd Mat Mat Active Infowar (turns) . | . . . Robot Analysis Total . | . . . Derelict Logs Recovered . | . . . Drone Launches . | . . . Drone Recoveries . | . . . Exploration | -11 -10 -9 ------------- Run | Yrd Mat Mat Turns Passed 877 | 57 474 346 Spaces Moved 556 | 55 354 147 Core 15 | 10 . 5 Treads . | . . . Legs 317 | . 175 142 Wheels 224 | 45 179 . Hover . | . . . Flight . | . . . Fastest Speed 50 | 50 80 120 Average Speed 103 | 74 99 125 Slowest Speed 200 | 80 120 200 Overloaded Moves . | . . . Propulsion Burnouts . | . . . Robots Hopped . | . . . Potential Cave-ins . | . . . Cave-ins Triggered . | . . . Exploration Rate (%) 20 | 3 49 10 Regions Visited 2 Branch Regions . Pre-discovered Areas . | . . . Known Exits Taken . | . . . Unknown Exits Taken 2 | 1 1 . Scrap Searched . | . . . Spaces Dug . | . . . Terrain Destroyed . | . . . Melee . | . . . Projectile . | . . . AOE . | . . . Terrain Rammed . | . . . Walls Destroyed . | . . . Machines Disabled . | . . . Actions | -11 -10 -9 --------- Run | Yrd Mat Mat Total 710 | 71 410 229 Wait . | . . . Move 554 | 54 353 147 Hop . | . . . Pick Up 30 | 11 6 13 Fast Attach . | . . . Attach 21 | 5 3 13 Detach . | . . . Swap 4 | . 4 . Drop 4 | 1 3 . Fire 90 | . 36 54 Melee . | . . . Ram 4 | . 4 . Kick 3 | . 1 2 Crush . | . . . Escape Stasis . | . . . Rewire . | . . . Trap . | . . . Miscellaneous . | . . . Route ------- -11/Scrapyard -10/Materials (discovered 3 exits: *Mat / [*Min] / [*Sub]) -9/Materials History --------- Turn | Location | Event 22 | -11/Scrapyard | Discovered new exit (range 15) 58 | -11/Scrapyard | Entered Materials 155 | -10/Materials | Discovered new exit (range 10) 218 | -10/Materials | Discovered new exit (range 16) 316 | -10/Materials | Build established: Mutant 440 | -10/Materials | Discovered new exit (range 15) 532 | -10/Materials | Entered another Materials area 532 | -9/Materials | Evolved 2 slots: Propulsion x2 639 | -9/Materials | Core integrity fell below 50% 668 | -9/Materials | Lost 9 parts (2p3n4w) 839 | -9/Materials | Core integrity fell below 20% 878 | -9/Materials | Destroyed by Y-45 Defender with Heavy Assault Rifle Last Messages --------------- Acquired Lgt. Ion Engine. Acquired 20 matter. Acquired 11 matter. Acquired 6 matter. Acquired 37 matter. S-10 Pest destroyed. Acquired 21 matter. Kicked S-10 Pest. S-10 Pest destroyed. Acquired 6 matter. Acquired Lgt. Ion Engine. Aluminum Leg destroyed. Hvy. Assault Rifle destroyed. S-10 Pest destroyed. Switching to secondary target: S-10 Pest. Aluminum Leg destroyed. Hvy. Assault Rifle destroyed. Flight Unit melted. S-10 Pest destroyed. R-06 Scavenger collects Flight Unit. Map ----- +----------------------------------------------------+ | ?????????????????????????????????????????? | | ?????????????????????????????????????????? | | ?????????????????????????????????????????? | | ?????????????????????????????????????????? | | ?????????????????????????????????????????? | | ?????????????????????????????????????????? | | ?????????????????????????????????????????? | | ???????????????????? ???????????????????? | | ???????????????????? ???????????????????? | | ???????????????????? ???????????????????? | | ???????????????????? #??????????????????? | | ???????????????????? #??????????????????? | | ???????????????????# /??????????????????? | | ???????????????????# #??????????????????? | | ???????????????????# #??????????????????? | | ???????????????????# #??????????????????? | | ???????????????????# #??????????????????? | | ???????????????????# #??????????????????? | | ???????????????????# #??????????????????? | | ???????????????????# #??????????????????? | | ???????????????????# #??????????????????? | | ????????###????????# #??????????????????? | | ???????? #????????# #??????????????????? | | ?????####+########## ######?????????????? | | ?????# =%Y #?????????????? | | ?????# @[%% = #???##+###????? | | ?????# *= = #?? #????? | | ?????####+##############% #? = ! #????? | | ??????# T #?????????#%% # """ #????? | | ??????# #?????????#! # """" #????? | | ??????#""" #?????????# +% """" #????? | | ??????#""" ###########= %# """" #????? | | ??????#""" + = # """ / #?? | | ??????# ###########= [#? #????? | | ??????########?????????# #?? #????? | | ?????????????########??#= =#???### ##????? | | ?????????????# # [#???????#?????? | | ?????????????# + #?????????????? | | ?????????????# # #?????????????? | | ?????????????# ??# #?????###?????? | | ?????????????########### ####### ##????? | | ??????????????# # # #????? | | ??????????????# # #! """"" #????? | | ??????????????# # # """"" #????? | | ??????????????# # + """"" #????? | | ??????????????# # # """"" #????? | | ??????????????# ! + # """"" #????? | | ??????????????#!!! # # """"" #????? | | ??????????????#!![ ## ## """"" #????? | | ??????????????# ## ## #????? | +----------------------------------------------------+ Best States ------------- Heat Dissipation 28 Energy Generation 10 Energy Capacity 250 Matter Stores 300 Matter Capacity 300 Sight Range 16 Terrain Scan Density 10 Armor Coverage 150 Evasion (%) 55 Targeting Accuracy 6 Item Schematics ----------------- None Robot Schematics ------------------ None Fabricated ------------ Nothing Repaired ---------- Nothing Studied --------- None Alien Tech Used ----------------- None Achievements -------------- Bumper Bots Challenges ------------ None Game ------ Seed ArcsightCompositePendant Manual? 0 Play Time 00:12:45 Cumulative 6.9 hours Start 2025.12.26 @ 14:15:53 End 2025.12.26 @ 14:25:06 Sessions 1 Manual Loads 0 Difficulty Rogue Special Mode None Game No. 18 Rogue 18 Adventurer 0 Explorer 0 Win Type - Total 0 Types 0/0/0/0/0/0/0/0/0/0 Lore% 2 Gallery% 11 Achievement% 11 Wizard Run 0 Options --------- Layout 1 ASCII 0 Keyboard 0 Movement Arrows Keybinds 0 Fullscreen 1 Font 16/SmallcapsGlow Map View 55x38 Zoom Use 0% Tactical HUD 0 Map Filters NONE Filters NONE Steam 1 RUN: 4926b1dd-fd6d-411b-a4c1-472207b93ec6